bitfinex-derivatives/quotes_SOLF0:USTF0_20251223
["timestamp","ask_amount","ask_price","bid_price","bid_amount"]
[1766507890740,0.05141128,124.04,124.01,7.31915323]
[1766507896051,0.00141128,124.04,124.02,11.1704]
[1766507896353,6.67262719,124.08,124.02,3.91]
[1766507897244,3.82,124.05,123.98,3.91]
[1766507897450,2.85262719,124.02,123.96,3.91]
[1766507897653,2.85262719,124.02,123.96,99.09]
[1766507898339,0.0586227,124.0,123.98,0.0606623]
[1766507898651,6.67262719,124.05,123.98,3.9706623]
[1766507899156,6.67262719,124.05,124.0,11.1716]
[1766507899452,0.05279134,124.04,124.01,0.05182029]
[1766507902442,0.05279134,124.04,124.01,7.31242029]
[1766507908363,0.05279134,124.04,124.01,0.05182029]
[1766507909263,0.00279134,124.04,124.01,3.96182029]
[1766507909460,99.0,124.08,124.02,3.91]
[1766507909662,3.82,124.04,123.97,3.91]
[1766507909859,6.67262719,124.03,123.99,7.2621]
[1766507910461,0.06066715,124.02,124.0,0.06210966]
[1766507912063,6.81262719,124.05,124.0,7.32370966]
[1766507912274,6.81262719,124.05,124.0,7.2616]
[1766507912774,3.96,124.07,124.01,3.67]
[1766507913067,3.96,124.07,124.03,0.05797777]
[1766507913662,3.96,124.07,124.03,7.31777777]
[1766507914059,3.96,124.07,123.98,112.9756]
[1766507914060,5.72079361,124.04,123.98,117.0156]
[1766507914261,9.361e-05,124.02,124.0,7.2615]
[1766507914467,5.72079361,124.04,123.98,4.04]
[1766507914665,1.82079361,124.02,123.98,4.04]
[1766507914971,0.05598065,124.01,123.99,0.05661968]
[1766507915565,1.82079361,124.0,123.96,4.04]
[1766507915765,1.82079361,124.0,123.94,4.04]
[1766507915966,9.361e-05,123.98,123.94,4.04]
[1766507916275,3.9,124.01,123.94,4.04]
[1766507916470,1.82079361,124.02,123.95,4.04]
[1766507916678,1.82079361,124.02,123.97,4.09219328]
[1766507916679,0.05757309,124.0,123.97,4.09219328]
[1766507917668,0.05757309,124.0,123.97,11.35529328]
[1766507917867,209.47328047,124.08,123.98,4.04]
[1766507917868,3.9,124.06,123.98,4.04]
[1766507918169,1.82079361,124.07,124.0,116.9958]
[1766507918371,1.82079361,124.07,124.02,4.04]
[1766507918968,0.05880628,124.06,124.03,0.05716108]
[1766507920972,0.05880628,124.06,124.03,7.31686108]
[1766507921165,3.9,124.08,124.03,7.31686108]
[1766507923476,3.9,124.08,124.04,7.2591]
[1766507923675,1.82079361,124.09,124.04,7.2591]
[1766507930787,7.2533,124.15,124.06,4.04]
[1766507931082,1.82079361,124.13,124.09,0.06162533]
[1766507931484,5.72079361,124.13,124.09,0.06162533]
[1766507932187,3.9,124.12,124.09,0.06162533]
[1766507935186,3.9,124.1,124.03,212.1283]
[1766507935380,3.9,124.12,124.04,4.04]
[1766507935590,3.9,124.12,124.05,4.04]
[1766507935889,7.2533,124.15,124.05,4.04]
[1766507935890,3.9,124.14,124.07,11.2974]
[1766507936078,0.06178051,124.12,124.09,0.05351417]
[1766507936280,0.00178051,124.12,124.09,4.09351417]
[1766507936484,0.00178051,124.12,124.1,11.2956]
[1766507936878,0.00178051,124.12,124.1,4.04]
[1766507939585,0.00178051,124.12,124.09,0.05351417]
[1766507941090,0.00178051,124.12,124.09,3.83351417]
[1766507941976,0.00178051,124.12,124.09,98.97351417]
[1766507942678,0.00178051,124.12,124.09,106.22951417]
[1766507942886,0.00178051,124.12,124.09,11.08951417]
[1766507943192,0.00178051,124.12,124.09,98.97351417]
[1766507943986,0.00178051,124.12,124.09,3.83351417]
[1766507946994,0.00178051,124.12,124.09,0.05351417]
[1766507947190,5.52257412,124.12,124.06,7.2578]
[1766507947393,1.82079361,124.1,124.05,3.78]
[1766507947597,5.52079361,124.1,124.03,98.9]
[1766507948188,0.05284868,124.08,124.05,0.05261278]
[1766507954697,0.05284868,124.08,124.03,3.78]
[1766507955893,0.05284868,124.08,124.04,0.05595323]
[1766507960110,0.05284868,124.08,124.04,7.31515323]
[1766507963711,0.05284868,124.08,124.04,11.09515323]
[1766507965612,0.05284868,124.08,124.04,3.83595323]
[1766507965908,5.52079361,124.07,124.02,3.78]
[1766507966608,1.82079361,124.07,124.03,3.78]
[1766507967311,1.82079361,124.07,124.04,0.0596364]
[1766507970715,0.05284868,124.08,124.04,0.0596364]
[1766507971618,0.05284868,124.08,124.04,3.9396364]
[1766507972317,0.05284868,124.08,124.05,7.2587]
[1766507979525,0.72037,124.16,124.1,3.84]
[1766507979722,0.72037,124.16,124.11,3.84]
[1766507979924,0.72037,124.16,124.11,11.0949]
[1766507980323,0.05249737,124.15,124.12,3.89416676]
[1766507980522,0.00249737,124.15,124.12,3.89416676]
[1766507980727,3.79249737,124.15,124.07,116.7356]
[1766507980925,3.79249737,124.15,124.03,14.70720014]
[1766507980926,3.79,124.15,124.09,3.84]
[1766507981121,6.63295207,124.14,124.07,99.0]
[1766507981736,6.63295207,124.14,124.08,3.84]
[1766507981925,0.05558232,124.12,124.1,0.058953]
[1766507983921,6.68853439,124.12,124.05,3.84]
[1766507984932,6.68853439,124.12,124.07,0.05522177]
[1766507987017,2.84295207,124.1,124.05,3.84]
[1766507988222,0.05507921,124.09,124.06,0.06137637]
[1766507991532,6.63295207,124.13,124.06,3.90137637]
[1766507991832,3.79,124.13,124.06,3.84]
[1766507992434,6.63295207,124.15,124.08,3.84]
[1766507992625,0.05646734,124.13,124.1,0.05291569]
[1766507996243,3.79,124.12,124.06,11.0976]
[1766507997237,0.05536662,124.1,124.08,0.05625143]
[1766507997636,3.84536662,124.1,124.04,11.0988]
[1766507997931,3.79,124.1,124.04,11.0988]
[1766507998843,0.05866674,124.08,124.06,0.06038609]
[1766508000137,3.79,124.12,124.06,3.90038609]
[1766508001038,0.06048932,124.1,124.06,3.90038609]
[1766508003438,0.06048932,124.1,124.06,0.06038609]
[1766508004947,0.06048932,124.1,124.06,11.14838609]
[1766508005548,0.06048932,124.1,124.07,3.83]
[1766508009038,0.00048932,124.1,124.08,3.83]
[1766508009242,0.72037,124.16,124.09,3.83]
[1766508009749,0.72037,124.16,124.13,3.83]
[1766508009750,7e-05,124.16,124.13,3.83]
[1766508010340,0.05706393,124.16,124.13,3.89200168]
[1766508010842,3.86,124.19,124.13,3.89200168]
[1766508011044,97.18946138,124.21,124.13,3.89200168]
[1766508011249,101.04946138,124.21,124.13,3.83]
[1766508011647,3.86,124.2,124.13,3.83]
[1766508011847,0.05513716,124.18,124.15,0.05905306]
[1766508012156,0.05513716,124.18,124.15,3.88905306]
[1766508012349,0.05513716,124.18,124.15,0.05905306]
[1766508016653,0.05513716,124.18,124.13,3.83]
[1766508017362,97.18946138,124.21,124.14,3.83]
[1766508017850,101.04946138,124.21,124.14,3.83]
[1766508018047,108.29906138,124.21,124.14,3.83]
[1766508018248,3.86,124.2,124.16,0.05401828]
[1766508018453,3.91635891,124.19,124.16,0.05401828]
[1766508020361,0.05635891,124.19,124.16,0.05401828]
[1766508023361,3.91635891,124.19,124.16,0.05401828]
[1766508023669,3.91635891,124.19,124.16,0.00401828]
[1766508024761,0.05635891,124.19,124.16,0.00401828]
[1766508025664,3.91635891,124.19,124.16,0.00401828]
[1766508026165,0.05635891,124.19,124.16,0.00401828]
[1766508032677,4.09635891,124.19,124.16,0.00401828]
[1766508037286,0.05635891,124.19,124.16,3.77401828]
[1766508037688,3.66,124.22,124.17,3.77]
[1766508037887,3.66,124.23,124.17,3.77]
[1766508038387,3.66,124.23,124.17,11.0216]
[1766508038686,0.06019586,124.21,124.19,0.05867801]
[1766508039575,1.81647651,124.24,124.19,0.05867801]
[1766508039779,3.66,124.24,124.19,0.05867801]
[1766508040484,0.05550102,124.23,124.19,0.05867801]
[1766508041490,1.87197753,124.23,124.19,0.05867801]
[1766508041783,5.53197753,124.23,124.19,0.05867801]
[1766508041989,3.66,124.26,124.19,3.82867801]
[1766508042176,3.66,124.26,124.19,3.77]
[1766508042380,5.47647651,124.25,124.19,3.77]
[1766508043090,5.47647651,124.25,124.21,0.05831364]
[1766508043979,1.81647651,124.26,124.21,3.82831364]
[1766508044187,5.47647651,124.28,124.22,0.05321908]
[1766508044387,3.66,124.28,124.22,0.05321908]
[1766508044689,1.81647651,124.3,124.23,3.77]
[1766508044990,100.53647651,124.31,124.25,0.0579636]
[1766508045193,3.66,124.34,124.25,11.0745636]
[1766508045380,5.47647651,124.32,124.28,0.05424194]
[1766508045581,1.81647651,124.3,124.29,0.00077861]
[1766508045790,5.47647651,124.3,124.23,11.0179]
[1766508045992,1.81647651,124.29,124.23,106.0779]
[1766508046183,1.81647651,124.29,124.23,3.77]
[1766508046695,0.05677255,124.27,124.25,0.05805937]
[1766508048984,0.05677255,124.27,124.21,11.0191]
[1766508049397,3.66,124.25,124.04,338.7654]
[1766508049585,1.81647651,124.24,124.18,3.77]
[1766508049993,1.81647651,124.29,124.21,3.77]
[1766508050292,5.47647651,124.3,124.23,3.77]
[1766508050986,0.06001746,124.28,124.25,0.05331194]
[1766508051495,1.87649397,124.28,124.25,0.05331194]
[1766508051699,5.53649397,124.28,124.25,0.00331194]
[1766508055287,1.81647651,124.24,124.19,3.77]
[1766508056190,0.05444053,124.23,124.2,0.05147664]
[1766508058099,1.81647651,124.27,124.2,3.82147664]
[1766508058287,1.81647651,124.27,124.2,3.77]
[1766508058795,1.81647651,124.3,124.22,3.77]
[1766508058999,1.81647651,124.3,124.25,0.06087077]
[1766508059199,98.68,124.31,124.25,0.06087077]
[1766508059200,3.66,124.31,124.25,0.06087077]
[1766508061196,3.97,124.34,124.27,4.0]
[1766508061397,3.97,124.34,124.29,0.0514501]
[1766508061597,5.78647651,124.33,124.29,0.0514501]
[1766508061903,5.78647651,124.33,124.25,4.0]
[1766508061904,0.05587846,124.32,124.3,0.00110095]
[1766508062302,0.05587846,124.32,124.26,4.0]
[1766508063395,0.05587846,124.32,124.28,0.06148912]
[1766508063598,0.05587846,124.32,124.28,4.06148912]
[1766508065505,5.78647651,124.35,124.29,4.0]
[1766508066694,5.78647651,124.35,124.31,0.059836]
[1766508069008,3.97,124.35,124.31,0.059836]
[1766508069205,5.78647651,124.35,124.31,0.059836]
[1766508070094,5.78647651,124.36,124.31,0.059836]
[1766508071499,3.97,124.36,124.31,0.059836]
[1766508071696,5.78647651,124.36,124.31,0.059836]
[1766508073705,3.97,124.35,124.31,0.059836]
[1766508073906,1.81647651,124.34,124.31,0.059836]
[1766508074307,3.97,124.35,124.31,0.059836]
[1766508074507,5.78647651,124.37,124.31,4.059836]
[1766508074813,1.81647651,124.38,124.33,4.0]
[1766508075010,1.81647651,124.38,124.34,0.05343362]
[1766508075211,3.97,124.39,124.34,0.05343362]
[1766508076710,5.78647651,124.39,124.34,0.05343362]
[1766508080011,3.97,124.36,124.3,4.0]
[1766508080212,1.81647651,124.35,124.3,4.0]
[1766508080408,5.78647651,124.35,124.27,4.0]
[1766508080718,5.78647651,124.33,124.25,106.2066]
[1766508080912,1.81647651,124.31,124.25,11.2466]
[1766508081108,1.81647651,124.31,124.27,0.00330299]
[1766508081109,1.87245545,124.29,124.27,0.00330299]
[1766508081309,1.87245545,124.29,124.23,94.96]
[1766508081714,0.05597894,124.29,124.24,4.0]
[1766508082115,0.05597894,124.29,124.25,7.2468]
[1766508082421,0.05597894,124.29,124.26,0.05456661]
[1766508086924,0.05597894,124.29,124.26,7.30086661]
[1766508087321,0.05597894,124.29,124.26,0.05456661]
[1766508087523,3.97,124.34,124.26,4.05456661]
[1766508087722,5.78647651,124.34,124.26,4.0]
[1766508087924,5.78647651,124.34,124.27,11.2457]
[1766508088124,5.78647651,124.36,124.28,4.0]
[1766508088628,0.05490987,124.33,124.31,0.05468886]
[1766508090229,0.05490987,124.33,124.31,0.00468886]
[1766508096330,5.80647651,124.37,124.31,0.00468886]
[1766508097234,3.99,124.36,124.31,0.00468886]
[1766508097436,5.86567002,124.35,124.31,0.00468886]
[1766508098040,4.04919351,124.35,124.31,0.00468886]
[1766508098331,3.99,124.41,124.33,3.83]
[1766508098533,3.66,124.4,124.33,3.83]
[1766508098734,3.66,124.4,124.33,98.79]
[1766508099336,3.66,124.4,124.35,0.06047738]
[1766508100040,6.49096986,124.39,124.35,0.06047738]
[1766508100243,6.49096986,124.39,124.36,0.00437371]
[1766508101130,6.54103129,124.39,124.36,0.00437371]
[1766508102340,6.54103129,124.39,124.31,98.79]
[1766508102542,6.49096986,124.39,124.31,98.79]
[1766508102732,3.66,124.38,124.32,3.83]
[1766508102932,3.66,124.38,124.32,11.0726]
[1766508103242,3.66,124.4,124.32,98.79]
[1766508103427,3.66,124.4,124.34,0.06087067]
[1766508103428,0.053605,124.36,124.34,0.06087067]
[1766508103632,3.66,124.4,124.34,0.06087067]
[1766508104339,3.66,124.42,124.35,3.83]
[1766508104639,3.66,124.42,124.37,0.05346226]
[1766508105229,3.66,124.42,124.37,7.29346226]
[1766508105544,4.60269587,124.43,124.37,218.68526226]
[1766508107534,4.60269587,124.43,124.37,11.12346226]
[1766508107735,8.26269587,124.43,124.37,106.06346226]
[1766508107933,8.26269587,124.43,124.37,11.12346226]
[1766508108940,4.60269587,124.43,124.37,11.12346226]
[1766508109138,4.60269587,124.43,124.37,123.74686226]
[1766508109340,9.587e-05,124.43,124.39,3.83]
[1766508109646,9.587e-05,124.43,124.4,0.05277373]
[1766508113346,3.66009587,124.43,124.4,0.05277373]
[1766508115244,3.71230772,124.43,124.37,3.83]
[1766508116347,3.71230772,124.43,124.39,0.0597685]
[1766508119654,0.05230772,124.43,124.39,0.0597685]
[1766508120148,3.71230772,124.43,124.39,0.0597685]
[1766508121954,0.05230772,124.43,124.39,0.0597685]
[1766508122156,0.05230772,124.43,124.39,7.2984685]
[1766508122949,0.05230772,124.43,124.39,0.0597685]
[1766508128071,4.06230772,124.43,124.39,0.0597685]
[1766508129060,0.05230772,124.43,124.39,0.0597685]
[1766508130170,0.05230772,124.43,124.4,7.2382]
[1766508137986,0.05230772,124.43,124.39,0.0597685]
[1766508138167,0.05230772,124.43,124.39,3.9097685]
[1766508140265,4.06230772,124.43,124.39,0.0597685]
[1766508142065,6.89327758,124.43,124.39,0.0597685]
[1766508142269,6.89327758,124.43,124.35,11.0908]
[1766508142270,4.01,124.42,124.35,11.0908]
[1766508143077,4.01,124.42,124.35,116.4916]
[1766508143378,9.587e-05,124.43,124.38,3.85]
[1766508143677,9.587e-05,124.43,124.39,3.85]
[1766508143870,9.587e-05,124.43,124.4,3.85]
[1766508144275,0.05589113,124.43,124.4,3.90357181]
[1766508144580,6.84096986,124.46,124.4,11.14147181]
[1766508145775,2.83096986,124.46,124.4,11.14147181]
[1766508145979,4.01,124.45,124.4,0.05357181]
[1766508150176,4.01,124.43,124.36,105.9704]
[1766508151086,2.83096986,124.42,124.36,105.9704]
[1766508151275,0.05357181,124.41,124.38,0.05996983]
[1766508154486,2.88454167,124.41,124.38,0.05996983]
[1766508154677,2.88454167,124.41,124.36,3.85]
[1766508155571,2.88454167,124.41,124.37,0.05865425]
[1766508155777,0.05357181,124.41,124.37,0.05865425]
[1766508155982,0.00357181,124.41,124.37,3.99865425]
[1766508158886,0.00357181,124.41,124.37,11.23855425]
[1766508159077,0.00357181,124.41,124.38,3.94]
[1766508159976,0.00357181,124.41,124.38,11.1792]
[1766508160176,0.00357181,124.41,124.39,3.74]
[1766508160777,0.00357181,124.41,124.39,10.9787]
[1766508162178,0.00357181,124.41,124.4,3.74]
[1766508163181,7.198e-05,124.46,124.41,112.5872]
[1766508163382,3.86,124.47,124.41,98.64]
[1766508164187,0.05885486,124.45,124.43,0.06088316]
[1766508164688,5.66930017,124.49,124.43,3.80088316]
[1766508166691,3.86,124.52,124.45,3.74]
[1766508166889,3.86,124.52,124.47,0.06108453]
[1766508167083,1.80930017,124.51,124.47,0.06108453]
[1766508167285,3.86,124.5,124.47,0.06108453]
[1766508167477,1.80930017,124.49,124.43,3.74]
[1766508167675,5.66930017,124.49,124.44,94.88]
[1766508167875,1.80930017,124.47,124.43,3.74]
[1766508168391,5.66930017,124.47,124.4,3.74]
[1766508168592,0.05623157,124.45,124.42,3.79354839]
[1766508168891,1.80930017,124.48,124.42,3.79354839]
[1766508169196,3.86,124.49,124.42,3.79354839]
[1766508169382,5.66930017,124.49,124.42,3.79354839]
[1766508170390,5.66930017,124.49,124.43,3.74]
[1766508170586,5.66930017,124.51,124.45,0.05891261]
[1766508170790,5.66930017,124.51,124.47,0.05637732]
[1766508173296,3.86,124.51,124.47,0.05637732]
[1766508173594,5.66930017,124.51,124.47,0.05637732]
[1766508174187,11.0905,124.54,124.47,3.79637732]
[1766508174401,5.66930017,124.52,124.47,0.05637732]
[1766508174692,3.86,124.51,124.47,0.05637732]
[1766508174993,1.80930017,124.52,124.47,0.05637732]
[1766508175196,1.80930017,124.52,124.47,3.79637732]
[1766508176691,98.72,124.56,124.47,3.79637732]
[1766508176897,3.86,124.55,124.49,3.74]
[1766508177098,3.86,124.55,124.5,0.05841653]
[1766508177394,3.86,124.51,124.45,3.74]
[1766508177594,3.86,124.51,124.45,98.6]
[1766508178499,0.06001658,124.49,124.47,0.05887776]
[1766508182799,0.06001658,124.49,124.44,7.2357]
[1766508183008,1.80930017,124.48,124.42,7.2368]
[1766508183195,5.78930017,124.48,124.42,7.2368]
[1766508183597,1.80930017,124.46,124.4,108.84632185]
[1766508183796,0.05095798,124.44,124.42,0.05095689]
[1766508186903,0.00095798,124.44,124.43,3.88]
[1766508190819,0.00095798,124.44,124.43,98.74]
[1766508192430,0.00095798,124.44,124.43,94.86]
[1766508197736,0.00095798,124.44,124.43,98.74]
[1766508203444,0.00095798,124.44,124.42,0.05095689]
[1766508206127,0.00095798,124.44,124.43,7.2366]
[1766508211543,0.00095798,124.44,124.42,7.28765689]
[1766508213939,0.00095798,124.44,124.42,0.05095689]
[1766508217550,3.71,124.43,124.37,3.68]
[1766508218140,3.71,124.43,124.38,11.0094]
[1766508218640,0.00066863,124.42,124.39,3.82561103]
[1766508219544,0.00066863,124.42,124.4,7.2382]
[1766508221151,3.69066863,124.42,124.37,3.77]
[1766508222148,3.69066863,124.42,124.38,0.05822812]
[1766508223539,0.00066863,124.42,124.38,0.05822812]
[1766508228655,0.00066863,124.42,124.38,7.29742812]
[1766508230253,0.00066863,124.42,124.39,3.77]
[1766508230949,0.00066863,124.42,124.4,3.77]
[1766508232549,0.00066863,124.42,124.4,11.008]
[1766508232749,0.00066863,124.42,124.38,3.82822812]
[1766508232962,0.00066863,124.42,124.38,98.72822812]
[1766508234648,0.00066863,124.42,124.38,105.96742812]
[1766508236951,0.00066863,124.42,124.39,3.77]
[1766508243856,0.00066863,124.42,124.38,0.05822812]
[1766508244971,3.87066863,124.42,124.38,0.05822812]
[1766508246968,3.87066863,124.42,124.36,7.2402]
[1766508247559,3.87066863,124.42,124.35,4.02]
[1766508247971,3.87066863,124.42,124.37,0.05451073]
[1766508250775,3.87,124.41,124.37,0.05451073]
[1766508251571,3.87,124.4,124.37,0.05451073]
[1766508251975,3.87,124.4,124.35,4.02]
[1766508252970,0.05460682,124.39,124.36,0.05443601]
[1766508254182,3.92460682,124.39,124.36,0.05443601]
[1766508254477,3.92460682,124.39,124.33,106.1623]
[1766508255271,3.92460682,124.39,124.34,4.02]
[1766508255585,3.92460682,124.39,124.35,0.05735566]
[1766508265093,3.87,124.38,124.32,4.02]
[1766508265287,3.87,124.37,124.3,5.92163]
[1766508265492,3.87,124.35,124.3,1.90163]
[1766508265794,3.87,124.38,124.31,4.02]
[1766508266294,3.92831114,124.36,124.3,1.90163]
[1766508266790,3.87,124.34,124.3,0.00163]
[1766508267193,3.87,124.34,124.31,0.05904439]
[1766508267386,3.93059662,124.33,124.27,98.94]
[1766508267586,3.93059662,124.33,124.27,4.02]
[1766508268393,3.93059662,124.33,124.29,0.05774546]
[1766508268691,11.17309662,124.33,124.29,0.05774546]
[1766508269500,3.87,124.32,124.29,0.05774546]
[1766508269891,3.87,124.32,124.25,11.2666]
[1766508270384,3.87,124.32,124.26,4.02]
[1766508270793,0.06157234,124.3,124.28,0.06183112]
[1766508278799,3.89157234,124.3,124.24,10.9972]
[1766508279003,0.06157234,124.3,124.25,3.75]
[1766508279800,0.06157234,124.3,124.26,0.05560001]
[1766508280000,0.06157234,124.3,124.26,3.80560001]
[1766508280601,0.06157234,124.3,124.26,11.05180001]
[1766508281609,0.06157234,124.3,124.26,3.80560001]
[1766508281809,3.89157234,124.3,124.26,0.05560001]
[1766508284918,0.06157234,124.3,124.26,0.05560001]
[1766508286220,0.06157234,124.3,124.26,3.80560001]
[1766508286908,0.06157234,124.3,124.26,11.05180001]
[1766508287309,0.06157234,124.3,124.26,3.80560001]
[1766508289209,0.06157234,124.3,124.27,3.75]
[1766508293921,0.06157234,124.3,124.27,10.9958]
[1766508294114,0.00157234,124.3,124.28,3.75]
[1766508295310,1.81341695,124.34,124.29,3.75]
[1766508295818,5.64341695,124.34,124.29,3.75]
[1766508296221,0.05590455,124.33,124.3,0.05086788]
[1766508297017,0.05590455,124.33,124.3,11.04496788]
[1766508297314,1.39952947,124.43,124.31,3.75]
[1766508297526,1.81341695,124.37,124.31,3.75]
[1766508298215,5.64341695,124.37,124.31,3.75]
[1766508298416,0.05857199,124.35,124.33,0.05223657]
[1766508300321,1.81341695,124.38,124.33,0.05223657]
[1766508300727,3.83,124.39,124.33,3.73223657]
[1766508301021,1.81341695,124.38,124.34,3.68]
[1766508301217,3.83,124.39,124.34,3.68]
[1766508301418,0.05806282,124.37,124.34,3.68]
[1766508301725,0.05806282,124.37,124.33,7.29443657]
[1766508301726,0.05806282,124.37,124.33,0.05223657]
[1766508301922,0.05806282,124.37,124.33,3.73223657]
[1766508303614,0.05806282,124.37,124.33,0.05223657]
[1766508305422,4.07,124.34,124.26,3.68]
[1766508305618,4.07,124.3,124.24,3.68]
[1766508306421,0.00419744,124.28,124.26,0.05280078]
[1766508307522,1.81341695,124.32,124.26,3.73280078]
[1766508308226,5.88341695,124.34,124.26,10.97900078]
[1766508308429,5.88341695,124.34,124.26,10.9262]
[1766508308630,0.05229037,124.31,124.29,0.05543908]
[1766508315827,1.81341695,124.34,124.29,3.73543908]
[1766508316431,99.03,124.36,124.29,3.73543908]
[1766508316432,100.84341695,124.36,124.3,3.68]
[1766508316830,0.05183225,124.34,124.32,0.05796179]
[1766508318737,0.05183225,124.34,124.32,3.73796179]
[1766508318738,0.00183225,124.34,124.32,3.73796179]
[1766508319033,1.81341695,124.39,124.32,3.73796179]
[1766508319632,5.88341695,124.37,124.32,3.73796179]
[1766508319833,0.05711316,124.36,124.32,0.05796179]
[1766508321443,1.81341695,124.35,124.32,0.05796179]
[1766508321634,0.05711316,124.36,124.32,0.05796179]
[1766508321835,4.12711316,124.36,124.32,0.05796179]
[1766508322144,1.81341695,124.34,124.32,0.05796179]
[1766508322337,1.81341695,124.34,124.28,3.68]
[1766508322543,5.88341695,124.34,124.28,3.68]
[1766508323348,0.05579527,124.32,124.3,0.05520173]
[1766508328948,1.81341695,124.35,124.3,3.92520173]
[1766508329552,5.70341695,124.36,124.3,3.92520173]
[1766508330044,0.06015754,124.34,124.3,3.92520173]
[1766508334151,0.06015754,124.34,124.3,11.16920173]
[1766508334755,0.06015754,124.34,124.31,3.71]
[1766508335754,0.00015754,124.34,124.31,10.9535]
[1766508335950,0.00015754,124.34,124.32,3.71]
[1766508336149,0.00015754,124.34,124.3,3.76520173]
[1766508340148,0.00015754,124.34,124.3,11.00910173]
[1766508340352,0.00015754,124.34,124.31,4.01]
[1766508341951,0.00015754,124.34,124.3,0.05520173]
[1766508343461,0.00015754,124.34,124.3,4.06520173]
[1766508346954,0.00015754,124.34,124.31,4.01]
[1766508347860,0.00015754,124.34,124.3,0.05520173]
[1766508353475,13.93322274,124.34,124.3,0.05520173]
[1766508355477,13.93322274,124.34,124.28,4.01]
[1766508356374,11.10195754,124.34,124.3,0.05227844]
[1766508357071,3.86015754,124.34,124.3,0.05227844]
[1766508358285,0.00015754,124.34,124.3,0.05227844]
[1766508358484,0.00015754,124.34,124.3,4.06227844]
[1766508358881,0.00015754,124.34,124.3,11.30627844]
[1766508359185,0.00015754,124.34,124.31,4.01]
[1766508360781,0.00015754,124.34,124.32,3.94]
[1766508361186,0.00015754,124.34,124.3,0.05227844]
[1766508364392,6.81142274,124.34,124.3,0.05227844]
[1766508364794,0.00015754,124.34,124.3,7.29637844]
[1766508365392,0.00015754,124.34,124.31,7.2434]
[1766508365886,0.00015754,124.34,124.3,3.99227844]
[1766508367596,0.00015754,124.34,124.3,11.23637844]
[1766508371806,0.00015754,124.34,124.31,11.1835]
[1766508372209,0.00015754,124.34,124.31,3.94]
[1766508376317,0.00015754,124.34,124.31,11.1834]
[1766508382226,0.00015754,124.34,124.3,0.05227844]
[1766508382614,11.22195754,124.34,124.3,0.05227844]
[1766508384635,3.91,124.33,124.3,0.05227844]
[1766508384835,0.00015754,124.34,124.3,3.79227844]
[1766508387238,0.00015754,124.34,124.31,3.74]
[1766508388540,0.00015754,124.34,124.31,10.9835]
[1766508390840,0.00015754,124.34,124.3,0.05227844]
[1766508391045,3.75015754,124.34,124.3,0.05227844]
[1766508395846,3.75015754,124.34,124.3,0.00227844]
[1766508396040,3.75015754,124.34,124.28,3.76]
[1766508396940,3.75015754,124.34,124.3,0.06090057]
[1766508401247,0.00015754,124.34,124.3,0.06090057]
[1766508407059,3.77015754,124.34,124.3,0.06090057]
[1766508408459,5.58214563,124.34,124.3,0.06090057]
[1766508409952,3.77015754,124.34,124.3,0.06090057]
[1766508412063,0.00015754,124.34,124.3,11.22500057]
[1766508417666,0.00015754,124.34,124.3,7.30500057]
[1766508417865,3.77,124.31,124.25,3.92]
[1766508418073,3.77,124.33,124.26,3.92]
[1766508418967,0.05777112,124.31,124.28,3.9783454]
[1766508419162,0.05777112,124.31,124.28,11.2235454]
[1766508419363,3.77,124.33,124.28,11.2235454]
[1766508419867,1.81198809,124.34,124.28,11.2235454]
[1766508419868,3.77,124.34,124.29,11.1646]
[1766508420254,0.05558829,124.33,124.3,11.164]
[1766508420558,3.77,124.38,124.31,3.92]
[1766508420952,1.81198809,124.37,124.31,3.92]
[1766508421156,5.72198809,124.39,124.31,3.92]
[1766508421562,0.05600242,124.36,124.34,0.05949598]
[1766508422764,3.91,124.47,124.37,112.6213]
[1766508422963,3.91,124.45,124.36,207.5915]
[1766508423263,3.91,124.45,124.39,7.2385]
[1766508423460,3.91,124.45,124.37,112.622]
[1766508423656,0.05885475,124.42,124.4,0.0542552]
[1766508423866,3.91,124.45,124.4,0.0542552]
[1766508424469,3.91,124.47,124.4,119.8869552]
[1766508424854,0.06126988,124.45,124.4,119.8869552]
[1766508425471,3.97126988,124.45,124.4,0.0542552]